fUST/lending_fUST_20250816
["ID","MTS","AMOUNT","RATE_DAILY","PERIOD"]
[379641468,1755354642853,-604.98,0.00021917,3]
[379641469,1755354642861,-983.34,0.00021917,3]
[379641470,1755354642871,-480.0,0.00021917,3]
[379641471,1755354642880,-480.0,0.00021917,3]
[379641473,1755354642889,-480.0,0.00021917,3]
[379641474,1755354642897,-1488.77,0.00021917,3]
[379641477,1755354642907,-480.0,0.00021917,3]
[379641479,1755354642916,-460.0,0.00021917,3]
[379641481,1755354642925,-480.0,0.00021917,3]
[379641484,1755354642934,-500.0,0.00021917,3]
[379641487,1755354642943,-480.0,0.00021917,3]
[379641490,1755354642953,-583.28,0.00021917,3]
[379641492,1755354642962,-480.0,0.00021917,3]
[379641495,1755354642971,-480.0,0.00021917,3]
[379641498,1755354642980,-460.0,0.00021917,3]
[379641502,1755354642990,-480.0,0.00021917,3]
[379641506,1755354642999,-3197.71,0.00021917,3]
[379641509,1755354643008,-480.0,0.00021917,3]
[379641512,1755354643017,-480.0,0.00021917,3]
[379641514,1755354643026,-1526.67,0.00021917,3]
[379641516,1755354643035,-1662.44,0.00021917,3]
[379641518,1755354643044,-480.0,0.00021917,3]
[379641520,1755354643054,-480.0,0.00021917,3]
[379641522,1755354643063,-664.34,0.00021917,3]
[379641524,1755354643073,-871.18,0.00021917,3]
[379641526,1755354643082,-480.0,0.00021917,3]
[379641528,1755354643091,-480.0,0.00021917,3]
[379641530,1755354643100,-816.4,0.00021917,3]
[379641531,1755354643109,-480.0,0.00021917,3]
[379641533,1755354643119,-480.0,0.00021917,3]
[379641535,1755354643129,-1211.76,0.00021917,3]
[379641537,1755354643138,-480.0,0.00021917,3]
[379641539,1755354643147,-480.0,0.00021917,3]
[379641541,1755354643156,-480.0,0.00021917,3]
[379641543,1755354643166,-2270.41,0.00021917,3]
[379641545,1755354643175,-480.0,0.00021917,3]
[379641547,1755354643184,-480.0,0.00021917,3]
[379641549,1755354643193,-480.0,0.00021917,3]
[379641551,1755354643203,-595.78632833,0.00021917,3]
[379641553,1755354643212,-1182.22,0.00021917,3]
[379641555,1755354643222,-480.0,0.00021917,3]
[379641557,1755354643231,-480.0,0.00021917,3]
[379641559,1755354643241,-1062.94,0.00021917,3]
[379641561,1755354643250,-480.0,0.00021917,3]
[379641563,1755354643259,-460.0,0.00021917,3]
[379641565,1755354643270,-480.0,0.00021917,3]
[379641567,1755354643280,-480.0,0.00021917,3]
[379641569,1755354643290,-561.43,0.00021917,3]
[379641571,1755354643299,-1497.25,0.00021917,3]
[379641573,1755354643308,-1518.92,0.00021917,3]
[379641575,1755354643322,-480.0,0.00021917,3]
[379641577,1755354643331,-480.0,0.00021917,3]
[379641579,1755354643341,-480.0,0.00021917,3]
[379641581,1755354643350,-480.0,0.00021917,3]
[379641583,1755354643359,-691.46,0.00021917,3]
[379641585,1755354643370,-480.0,0.00021917,3]
[379641587,1755354643379,-480.0,0.00021917,3]
[379641589,1755354643388,-480.0,0.00021917,3]
[379641591,1755354643398,-480.0,0.00021917,3]
[379641593,1755354643408,-480.0,0.00021917,3]
[379641595,1755354643418,-514.25,0.00021917,3]
[379641597,1755354643427,-480.0,0.00021917,3]
[379641599,1755354643436,-480.0,0.00021917,3]
[379641601,1755354643446,-480.0,0.00021917,3]
[379641603,1755354643455,-480.0,0.00021917,3]
[379641605,1755354643465,-1068.62,0.00021917,3]
[379641607,1755354643474,-4237.62,0.00021917,3]
[379641609,1755354643484,-1350.13,0.00021917,3]
[379641611,1755354643492,-480.0,0.00021917,3]
[379641613,1755354643502,-480.0,0.00021917,3]
[379641616,1755354643511,-757.0,0.00021917,3]
[379641619,1755354643521,-480.0,0.00021917,3]
[379641622,1755354643530,-460.0,0.00021917,3]
[379641625,1755354643539,-480.0,0.00021917,3]
[379641628,1755354643549,-480.0,0.00021917,3]
[379641631,1755354643558,-292.96609888,0.00021917,3]
[379641633,1755354643568,-1514.08,0.00021917,3]
[379641635,1755354643577,-480.0,0.00021917,3]
[379641637,1755354643586,-153.0,0.00021918,2]
[379641653,1755354643725,-153.0,0.00021918,2]
[379641655,1755354643735,-153.0,0.00021918,2]
[379641657,1755354643746,-153.0,0.00021918,2]
[379641659,1755354643755,-153.0,0.00021918,2]
[379641661,1755354643765,-200.0,0.00021918,2]
[379641663,1755354643775,-1191.15810937,0.00021932,2]
[379641665,1755354643784,-580.575816,0.00021945,2]
[379641667,1755354643793,-580.575816,0.00021945,2]
[379641669,1755354643802,-580.575816,0.00021945,2]
[379641671,1755354643811,-580.575816,0.00021945,2]
[379641673,1755354643821,-580.575816,0.00021945,2]
[379641675,1755354643831,-500.0,0.00021973,2]
[379641677,1755354643840,-500.0,0.00021973,2]
[379641679,1755354643849,-393.737612,0.00021973,2]
[379641681,1755354643858,-500.0,0.00021973,2]
[379641683,1755354643868,-500.26391624,0.00021973,2]
[379641685,1755354643878,-500.0,0.00021973,2]
[379641687,1755354643887,-500.0,0.00021973,2]
[379641690,1755354643896,-500.0,0.00021973,2]
[379641692,1755354643906,-500.0,0.00021973,2]
[379641694,1755354643915,-500.0,0.00021973,2]
[379641696,1755354643925,-501.30339639,0.00021973,2]
[379641698,1755354643934,-500.0,0.00021973,2]
[379641700,1755354643943,-500.0,0.00021973,2]
[379641702,1755354643952,-500.0,0.00021973,2]
[379641704,1755354643961,-500.0,0.00021973,2]
[379641706,1755354643970,-502.71641354,0.00021973,2]
[379641708,1755354643980,-753.96313079,0.00021973,2]
[379641710,1755354643989,-3012.83667062,0.00021973,2]
[379641712,1755354643998,-420.0,0.00021974,2]
[379641714,1755354644007,-233.0,0.00021975,2]
[379641715,1755354644016,-161.93,0.00022,7]
[379641717,1755354644025,-151.0,0.00022,4]
[379641719,1755354644035,-58688.59,0.00022,2]
[379641721,1755354644045,-9815.49,0.00022,7]
[379641723,1755354644055,-151.0,0.00022,7]
[379641725,1755354644064,-215.68093138,0.00022,7]
[379641727,1755354644073,-164.0,0.00022,2]
[379641729,1755354644083,-462.1417622,0.00022,7]
[379641731,1755354644091,-1769.01060616,0.00022001,2]
[379641733,1755354644100,-1000.0,0.00022004,2]
[379641735,1755354644110,-1002.572045,0.00022004,2]
[379641737,1755354644120,-212.28138,0.0002201,5]
[379641739,1755354644129,-408.11017266,0.00022056,2]
[379641741,1755354644138,-160.0,0.00022073,2]
[379641743,1755354644148,-183.74,0.000221,2]
[379641745,1755354644157,-500.0,0.00022106,2]
[379641747,1755354644167,-1336.59564169,0.00022116,2]
[379641749,1755354644176,-549.8,0.00022166,3]
[379641751,1755354644185,-284.28935344,0.00022173,2]
[379641753,1755354644194,-500.0,0.00022173,2]
[379641755,1755354644203,-500.63349668,0.00022173,2]
[379641757,1755354644213,-500.0,0.00022173,2]
[379641759,1755354644222,-500.0,0.00022173,2]
[379641761,1755354644231,-500.0,0.00022173,2]
[379641763,1755354644240,-500.0,0.00022173,2]
[379641765,1755354644249,-540.77709212,0.00022173,2]
[379641767,1755354644259,-500.0,0.00022173,2]
[379641769,1755354644268,-500.0,0.00022173,2]
[379641771,1755354644278,-500.0,0.00022173,2]
[379641773,1755354644287,-500.0,0.00022173,2]
[379641775,1755354644300,-500.0,0.00022173,2]
[379641777,1755354644310,-500.0,0.00022173,2]
[379641779,1755354644319,-500.0,0.00022173,2]
[379641781,1755354644328,-500.0,0.00022173,2]
[379641783,1755354644339,-500.0,0.00022173,2]
[379641785,1755354644348,-500.0,0.00022173,2]
[379641787,1755354644357,-500.58545385,0.00022173,2]
[379641789,1755354644367,-500.0,0.00022173,2]
[379641790,1755354644376,-500.0,0.00022173,2]
[379641792,1755354644386,-500.0,0.00022173,2]
[379641794,1755354644395,-500.0,0.00022173,2]
[379641796,1755354644405,-501.47483478,0.00022173,2]
[379641798,1755354644415,-500.0,0.00022173,2]
[379641800,1755354644425,-500.0,0.00022173,2]
[379641802,1755354644434,-500.0,0.00022173,2]
[379641804,1755354644443,-500.0,0.00022173,2]
[379641806,1755354644453,-500.0,0.00022173,2]
[379641808,1755354644463,-526.5,0.00022191,3]
[379641810,1755354644472,-480.0,0.00022191,3]
[379641812,1755354644482,-480.0,0.00022191,3]
[379641814,1755354644491,-605.16,0.00022191,3]
[379641816,1755354644501,-188.58922377,0.00022191,3]
[379641818,1755354644510,-460.0,0.00022191,3]
[379641820,1755354644520,-480.0,0.00022191,3]
[379641822,1755354644530,-480.0,0.00022191,3]
[379641824,1755354644539,-900.0,0.00022191,2]
[379641826,1755354644550,-480.0,0.00022191,3]
[379641828,1755354644560,-480.0,0.00022191,3]
[379641830,1755354644570,-480.0,0.00022191,3]
[379641832,1755354644580,-480.0,0.00022191,3]
[379641834,1755354644589,-480.0,0.00022191,3]
[379641836,1755354644599,-480.0,0.00022191,3]
[379641838,1755354644608,-537.91810537,0.00022191,3]
[379641840,1755354644618,-480.0,0.00022191,3]
[379641842,1755354644627,-388.03025789,0.00022191,3]
[379641844,1755354644637,-480.0,0.00022191,3]
[379641846,1755354644647,-440.0,0.00022191,3]
[379641848,1755354644656,-480.0,0.00022191,3]
[379641850,1755354644665,-480.0,0.00022191,3]
[379641852,1755354644675,-597.74197553,0.00022191,3]
[379641854,1755354644684,-480.0,0.00022191,3]
[379641856,1755354644694,-480.0,0.00022191,3]
[379641858,1755354644703,-286.79607639,0.00022191,3]
[379641860,1755354644713,-480.0,0.00022191,3]
[379641862,1755354644723,-447.0359992,0.00022191,3]
[379641864,1755354644733,-489.51,0.00022191,3]
[379641866,1755354644742,-480.0,0.00022191,3]
[379641868,1755354644752,-480.0,0.00022191,3]
[379641870,1755354644761,-208.03112568,0.00022191,3]
[379641872,1755354644771,-480.0,0.00022191,3]
[379641874,1755354644780,-420.0,0.00022191,3]
[379641876,1755354644789,-480.0,0.00022191,3]
[379641877,1755354644799,-480.0,0.00022191,3]
[379641879,1755354644809,-480.0,0.00022191,3]
[379641881,1755354644818,-480.0,0.00022191,3]
[379641883,1755354644828,-480.0,0.00022191,3]
[379641885,1755354644837,-480.0,0.00022191,3]
[379641887,1755354644847,-555.99,0.00022191,3]
[379641889,1755354644856,-415.95067621,0.00022191,3]
[379641891,1755354644866,-496.27,0.00022191,3]
[379641893,1755354644876,-862.54,0.00022191,3]
[379641895,1755354644887,-480.0,0.00022191,3]
[379641897,1755354644899,-480.0,0.00022191,3]
[379641899,1755354644908,-480.0,0.00022191,3]
[379641901,1755354644918,-710.03,0.00022191,3]
[379641903,1755354644928,-480.0,0.00022191,3]
[379641905,1755354644937,-480.0,0.00022191,3]
[379641907,1755354644947,-674.64,0.00022191,3]
[379641909,1755354644957,-1029.27,0.00022191,3]
[379641911,1755354644966,-480.0,0.00022191,3]
[379641913,1755354644976,-480.0,0.00022191,3]
[379641915,1755354644985,-384.78885794,0.00022191,3]
[379641917,1755354644995,-480.0,0.00022191,3]
[379641919,1755354645005,-480.0,0.00022191,3]
[379641921,1755354645014,-633.67,0.00022191,3]
[379641923,1755354645023,-480.0,0.00022191,3]
[379641925,1755354645033,-480.0,0.00022191,3]
[379641927,1755354645043,-480.0,0.00022191,3]
[379641929,1755354645052,-460.0,0.00022191,3]
[379641931,1755354645062,-480.0,0.00022191,3]
[379641933,1755354645071,-381.20669144,0.00022191,3]
[379641935,1755354645081,-480.0,0.00022191,3]
[379641937,1755354645091,-494.21,0.00022191,3]
[379641939,1755354645100,-480.0,0.00022191,3]
[379641941,1755354645110,-480.0,0.00022191,3]
[379641943,1755354645120,-662.77,0.00022191,3]
[379641945,1755354645130,-480.0,0.00022191,3]
[379641947,1755354645139,-460.0,0.00022191,3]
[379641949,1755354645149,-702.8,0.00022191,3]
[379641951,1755354645159,-480.0,0.00022191,3]
[379641953,1755354645168,-460.0,0.00022191,3]
[379641955,1755354645177,-480.0,0.00022191,3]
[379641956,1755354645186,-423.31569056,0.00022191,3]
[379641957,1755354645195,-393.50303492,0.00022191,3]
[379641958,1755354645204,-2144.28,0.00022191,3]
[379641959,1755354645214,-480.0,0.00022191,3]
[379641960,1755354645223,-480.0,0.00022191,3]
[379641961,1755354645232,-480.0,0.00022191,3]
[379641962,1755354645241,-480.0,0.00022191,3]
[379641963,1755354645250,-692.7,0.00022191,3]
[379641964,1755354645260,-480.0,0.00022191,3]
[379641965,1755354645269,-480.0,0.00022191,3]
[379641966,1755354645278,-460.0,0.00022191,3]
[379641967,1755354645287,-480.0,0.00022191,3]
[379641968,1755354645300,-608.52,0.00022191,3]
[379641969,1755354645309,-461.7654605,0.00022191,3]
[379641970,1755354645318,-480.0,0.00022191,3]
[379641971,1755354645327,-495.98631903,0.00022191,3]
[379641972,1755354645337,-480.0,0.00022191,3]
[379641973,1755354645346,-482.47,0.00022191,3]
[379641974,1755354645355,-480.0,0.00022191,3]
[379641975,1755354645365,-688.51,0.00022191,3]
[379641976,1755354645374,-632.37,0.00022191,3]
[379641977,1755354645384,-537.62,0.00022191,3]
[379641978,1755354645393,-480.0,0.00022191,3]
[379641979,1755354645402,-480.0,0.00022191,3]
[379641980,1755354645411,-803.93,0.00022191,3]
[379641981,1755354645420,-440.0,0.00022191,3]
[379641982,1755354645430,-420.64177241,0.00022191,3]
[379641983,1755354645439,-580.73,0.00022191,3]
[379641984,1755354645449,-480.0,0.00022191,3]
[379641985,1755354645458,-1167.11,0.00022191,3]
[379641986,1755354645467,-480.0,0.00022191,3]
[379641987,1755354645476,-480.0,0.00022191,3]
[379641988,1755354645486,-480.0,0.00022191,3]
[379641989,1755354645495,-480.0,0.00022191,3]
[379641990,1755354645504,-480.0,0.00022191,3]
[379641991,1755354645513,-460.0,0.00022191,3]
[379641992,1755354645523,-480.0,0.00022191,3]
[379641993,1755354645532,-1748.71,0.00022191,3]
[379641994,1755354645541,-480.0,0.00022191,3]
[379641995,1755354645551,-480.0,0.00022191,3]
[379641996,1755354645559,-480.0,0.00022191,3]
[379641997,1755354645569,-480.0,0.00022191,3]
[379641999,1755354645578,-480.0,0.00022191,3]
[379642001,1755354645588,-480.0,0.00022191,3]
[379642003,1755354645598,-480.0,0.00022191,3]
[379642005,1755354645608,-1658.19,0.00022191,3]
[379642007,1755354645618,-986.58,0.00022191,3]
[379642009,1755354645628,-480.0,0.00022191,3]
[379642011,1755354645638,-428.58079697,0.00022191,3]
[379642013,1755354645648,-2568.21,0.00022191,3]
[379642015,1755354645657,-480.0,0.00022191,3]
[379642017,1755354645667,-480.0,0.00022191,3]
[379642020,1755354645678,-1272.08,0.00022191,3]
[379642022,1755354645688,-480.0,0.00022191,3]
[379642024,1755354645699,-480.0,0.00022191,3]
[379642026,1755354645708,-480.0,0.00022191,3]
[379642028,1755354645717,-480.0,0.00022191,3]
[379642030,1755354645727,-480.0,0.00022191,3]
[379642031,1755354645736,-480.0,0.00022191,3]
[379642033,1755354645745,-236.63237301,0.00022191,3]
[379642035,1755354645754,-480.0,0.00022191,3]
[379642037,1755354645764,-460.0,0.00022191,3]
[379642039,1755354645773,-480.0,0.00022191,3]
[379642041,1755354645784,-480.0,0.00022191,3]
[379642043,1755354645794,-480.0,0.00022191,3]
[379642046,1755354645805,-10251.48,0.00022191,3]
[379642048,1755354645816,-599.9,0.00022191,3]
[379642050,1755354645827,-480.0,0.00022191,3]
[379642052,1755354645836,-460.0,0.00022191,3]
[379642055,1755354645846,-480.0,0.00022191,3]
[379642057,1755354645855,-480.0,0.00022191,3]
[379642059,1755354645865,-480.0,0.00022191,3]
[379642061,1755354645874,-480.0,0.00022191,3]
[379642062,1755354645884,-780.04,0.00022191,3]
[379642064,1755354645894,-480.0,0.00022191,3]
[379642066,1755354645903,-480.0,0.00022191,3]
[379642068,1755354645912,-480.0,0.00022191,3]
[379642070,1755354645922,-480.0,0.00022191,3]
[379642073,1755354645931,-480.0,0.00022191,3]
[379642074,1755354645942,-480.0,0.00022191,3]
[379642077,1755354645951,-480.0,0.00022191,3]
[379642079,1755354645960,-480.0,0.00022191,3]
[379642081,1755354645969,-480.0,0.00022191,3]
[379642083,1755354645979,-458.14429707,0.00022191,3]
[379642085,1755354645988,-480.0,0.00022191,3]
[379642087,1755354645997,-480.0,0.00022191,3]
[379642089,1755354646006,-480.0,0.00022191,3]
[379642091,1755354646015,-480.0,0.00022191,3]
[379642093,1755354646024,-514.49,0.00022191,3]
[379642095,1755354646034,-613.83,0.00022191,3]
[379642097,1755354646044,-480.0,0.00022191,3]
[379642099,1755354646053,-480.0,0.00022191,3]
[379642101,1755354646063,-480.0,0.00022191,3]
[379642103,1755354646072,-855.08,0.00022191,3]
[379642105,1755354646082,-480.0,0.00022191,3]
[379642107,1755354646091,-1167.32,0.00022191,3]
[379642109,1755354646100,-480.0,0.00022191,3]
[379642111,1755354646110,-480.0,0.00022191,3]
[379642113,1755354646119,-556.77,0.00022191,3]
[379642115,1755354646130,-480.0,0.00022191,3]
[379642117,1755354646140,-480.0,0.00022191,3]
[379642119,1755354646149,-480.0,0.00022191,3]
[379642121,1755354646159,-480.0,0.00022191,3]
[379642123,1755354646168,-480.0,0.00022191,3]
[379642125,1755354646177,-869.7,0.00022191,3]
[379642127,1755354646187,-480.0,0.00022191,3]
[379642129,1755354646196,-495.91,0.00022191,3]
[379642131,1755354646205,-879.67,0.00022191,3]
[379642133,1755354646215,-694.86,0.00022191,3]
[379642135,1755354646229,-1367.28,0.00022191,3]
[379642137,1755354646238,-480.0,0.00022191,3]
[379642139,1755354646247,-480.0,0.00022191,3]
[379642141,1755354646257,-2000.06,0.00022191,3]
[379642143,1755354646266,-705.6,0.00022191,3]
[379642145,1755354646276,-480.0,0.00022191,3]
[379642147,1755354646285,-480.0,0.00022191,3]
[379642149,1755354646298,-480.0,0.00022191,3]
[379642151,1755354646307,-480.0,0.00022191,3]
[379642153,1755354646316,-1971.17,0.00022191,3]
[379642155,1755354646326,-480.27,0.00022191,3]
[379642157,1755354646337,-480.0,0.00022191,3]
[379642159,1755354646347,-480.0,0.00022191,3]
[379642161,1755354646356,-480.0,0.00022191,3]
[379642163,1755354646365,-1460.97,0.00022191,3]
[379642165,1755354646376,-480.0,0.00022191,3]
[379642167,1755354646385,-480.0,0.00022191,3]
[379642169,1755354646395,-1458.06,0.00022191,3]
[379642171,1755354646404,-1313.45,0.00022191,3]
[379642173,1755354646413,-480.0,0.00022191,3]
[379642175,1755354646424,-1028.35,0.00022191,3]
[379642177,1755354646433,-480.0,0.00022191,3]
[379642179,1755354646443,-381.7892844,0.00022191,3]
[379642192,1755354646452,-480.0,0.00022191,3]
[379642196,1755354646583,-480.0,0.00022191,3]
[379642198,1755354646593,-480.0,0.00022191,3]
[379642199,1755354646603,-480.0,0.00022191,3]
[379642202,1755354646612,-677.55,0.00022191,3]
[379642203,1755354646622,-8181.88,0.00022191,3]
[379642206,1755354646633,-1252.27,0.00022191,3]
[379642207,1755354646643,-1312.05,0.00022191,3]
[379642210,1755354646653,-480.0,0.00022191,3]
[379642211,1755354646662,-480.0,0.00022191,3]
[379642213,1755354646672,-480.0,0.00022191,3]
[379642215,1755354646682,-480.0,0.00022191,3]
[379642217,1755354646691,-1581.97,0.00022191,3]
[379642219,1755354646705,-560.08,0.00022191,3]
[379642221,1755354646715,-14033.48,0.00022191,3]
[379642223,1755354646726,-667.56,0.00022191,2]
[379642225,1755354646736,-480.0,0.00022191,3]
[379642228,1755354646767,-4010.09,0.00022191,3]
[379642231,1755354646816,-480.0,0.00022191,3]
[379642233,1755354646828,-2987.01,0.00022191,3]
[379642234,1755354646838,-480.0,0.00022191,3]
[379642236,1755354646847,-480.0,0.00022191,3]
[379642238,1755354646857,-480.0,0.00022191,3]
[379642240,1755354646867,-1051.89,0.00022191,3]
[379642242,1755354646876,-480.0,0.00022191,3]
[379642245,1755354646886,-4922.6,0.00022191,3]
[379642247,1755354646895,-3809.75,0.00022191,3]
[379642249,1755354646905,-480.0,0.00022191,3]
[379642250,1755354646915,-480.0,0.00022191,3]
[379642253,1755354646925,-480.0,0.00022191,3]
[379642254,1755354646935,-1021.2,0.00022191,3]
[379642256,1755354646944,-1173.19,0.00022191,3]
[379642258,1755354646953,-604.98,0.00022191,3]
[379642261,1755354646963,-983.34,0.00022191,3]
[379642262,1755354646972,-480.0,0.00022191,3]
[379642264,1755354646981,-480.0,0.00022191,3]
[379642266,1755354646990,-480.0,0.00022191,3]
[379642268,1755354646999,-1488.77,0.00022191,3]
[379642270,1755354647008,-480.0,0.00022191,3]
[379642272,1755354647018,-480.0,0.00022191,3]
[379642274,1755354647027,-500.0,0.00022191,3]
[379642276,1755354647036,-480.0,0.00022191,3]
[379642278,1755354647045,-583.28,0.00022191,3]
[379642280,1755354647055,-480.0,0.00022191,3]
[379642282,1755354647067,-480.0,0.00022191,3]
[379642284,1755354647076,-440.69588126,0.00022191,3]
[379642286,1755354647085,-3197.71,0.00022191,3]
[379642288,1755354647094,-480.0,0.00022191,3]
[379642290,1755354647104,-417.39352156,0.00022191,3]
[379642292,1755354647113,-1526.67,0.00022191,3]
[379642294,1755354647122,-480.0,0.00022191,3]
[379642296,1755354647133,-1662.44,0.00022191,3]
[379642298,1755354647142,-329.90867605,0.00022191,3]
[379642300,1755354647151,-664.34,0.00022191,3]
[379642302,1755354647160,-871.18,0.00022191,3]
[379642304,1755354647171,-480.0,0.00022191,3]
[379642306,1755354647181,-480.0,0.00022191,3]
[379642308,1755354647190,-816.4,0.00022191,3]
[379642310,1755354647199,-340.0,0.00022191,3]
[379642312,1755354647208,-480.0,0.00022191,3]
[379642314,1755354647217,-1211.76,0.00022191,3]
[379642316,1755354647226,-480.0,0.00022191,3]
[379642318,1755354647235,-480.0,0.00022191,3]
[379642320,1755354647244,-480.0,0.00022191,3]
[379642322,1755354647253,-2270.41,0.00022191,3]
[379642324,1755354647262,-480.0,0.00022191,3]
[379642326,1755354647271,-320.73024843,0.00022191,3]
[379642328,1755354647280,-480.0,0.00022191,3]
[379642330,1755354647289,-1182.22,0.00022191,3]
[379642331,1755354647301,-382.5249557,0.00022191,3]
[379642333,1755354647310,-1062.94,0.00022191,3]
[379642335,1755354647320,-480.0,0.00022191,3]
[379642337,1755354647329,-480.0,0.00022191,3]
[379642339,1755354647340,-480.0,0.00022191,3]
[379642341,1755354647349,-561.43,0.00022191,3]
[379642343,1755354647358,-1497.25,0.00022191,3]
[379642345,1755354647367,-1518.92,0.00022191,3]
[379642347,1755354647376,-480.0,0.00022191,3]
[379642349,1755354647388,-598.47119424,0.00022191,3]
[379642351,1755354647398,-480.0,0.00022191,3]
[379642353,1755354647407,-420.0,0.00022191,3]
[379642355,1755354647416,-691.46,0.00022191,3]
[379642358,1755354647428,-480.0,0.00022191,3]
[379642359,1755354647437,-480.0,0.00022191,3]
[379642361,1755354647446,-480.0,0.00022191,3]
[379642363,1755354647456,-480.0,0.00022191,3]
[379642365,1755354647466,-305.32276259,0.00022191,3]
[379642367,1755354647475,-514.25,0.00022191,3]
[379642369,1755354647484,-480.0,0.00022191,3]
[379642371,1755354647493,-480.0,0.00022191,3]
[379642373,1755354647503,-480.0,0.00022191,3]
[379642375,1755354647512,-1068.62,0.00022191,3]
[379642377,1755354647521,-4237.62,0.00022191,3]
[379642379,1755354647532,-1350.13,0.00022191,3]
[379642381,1755354647542,-480.0,0.00022191,3]
[379642383,1755354647551,-480.0,0.00022191,3]
[379642385,1755354647560,-757.0,0.00022191,3]
[379642387,1755354647570,-480.0,0.00022191,3]
[379642389,1755354647579,-480.0,0.00022191,3]
[379642391,1755354647589,-480.0,0.00022191,3]
[379642393,1755354647598,-1514.08,0.00022191,3]
[379642395,1755354647607,-151.0,0.000222,9]
[379642397,1755354647617,-928.69954093,0.000222,69]
[379642399,1755354647626,-928.69954089,0.000222,69]
[379642401,1755354647636,-439.463,0.00022241,2]
[379642403,1755354647645,-1972.40244246,0.00022265,2]
[379642405,1755354647654,-168.0,0.00022295,2]
[379642407,1755354647664,-151.0,0.000223,8]
[379642409,1755354647673,-332.0,0.00022301,2]
[379642411,1755354647682,-174.59512495,0.00022365,2]
[379642413,1755354647692,-1769.01060616,0.00022365,2]
[379642415,1755354647701,-500.0,0.0002238,2]
[379642417,1755354647711,-168.0,0.00022438,2]
[379642418,1755354647720,-1191.15810937,0.0002244,2]
[379642420,1755354647730,-168.0,0.00022454,2]
[379642422,1755354647743,-440.0,0.00022464,3]
[379642424,1755354647752,-480.0,0.00022464,3]
[379642426,1755354647761,-200.30039571,0.00022464,3]
[379642428,1755354647771,-480.0,0.00022464,3]
[379642430,1755354647780,-480.0,0.00022464,3]
[379642432,1755354647790,-480.0,0.00022464,3]
[379642434,1755354647799,-441.14809802,0.00022464,3]
[379642436,1755354647808,-460.0,0.00022464,3]
[379642438,1755354647817,-480.0,0.00022464,3]
[379642440,1755354647828,-480.0,0.00022464,3]
[379642442,1755354647838,-480.0,0.00022464,3]
[379642444,1755354647847,-480.0,0.00022464,3]
[379642446,1755354647856,-480.0,0.00022464,3]
[379642448,1755354647866,-443.31466556,0.00022464,3]
[379642450,1755354647875,-480.0,0.00022464,3]
[379642452,1755354647884,-480.0,0.00022464,3]
[379642454,1755354647894,-480.0,0.00022464,3]
[379642456,1755354647903,-480.0,0.00022464,3]
[379642458,1755354647912,-480.0,0.00022464,3]
[379642459,1755354647921,-480.0,0.00022464,3]
[379642460,1755354647931,-532.0,0.00022464,3]